fUSD/lending_fUSD_20240528
["ID","MTS","AMOUNT","RATE_DAILY","PERIOD"]
[328101370,1716861047011,-421.33,0.0002874,2]
[328101371,1716861047023,-524.71,0.0002874,2]
[328101372,1716861047033,-524.71,0.0002874,2]
[328101373,1716861047043,-524.71,0.0002874,2]
[328101374,1716861047054,-524.71,0.0002874,2]
[328101375,1716861047063,-524.71,0.0002874,2]
[328101376,1716861047072,-2000.0,0.00028785,2]
[328101377,1716861047082,-200.0,0.00028785,2]
[328101378,1716861047091,-2000.0,0.00028785,2]
[328101379,1716861047102,-200.0,0.00028785,2]
[328101380,1716861047111,-2000.0,0.00028785,2]
[328101381,1716861047119,-200.0,0.00028785,2]
[328101382,1716861047128,-150.0,0.000288,6]
[328101383,1716861047137,-800.03,0.00028891,2]
[328101384,1716861047147,-323.12077895,0.00028899,2]
[328101385,1716861047156,-415.25,0.00028904,2]
[328101386,1716861047165,-174.75766118,0.00028941,2]
[328101387,1716861047174,-153.41127466,0.00028973,2]
[328101388,1716861047183,-9634.9762892,0.00029,5]
[328101389,1716861047192,-1150.0,0.00029,2]
[328101390,1716861047202,-766.45996685,0.00029,2]
[328101391,1716861047211,-1484.34244626,0.00029,2]
[328101392,1716861047220,-152.0,0.00029031,3]
[328101393,1716861047229,-221.52996355,0.00029035,2]
[328101394,1716861047238,-206.46284303,0.00029036,2]
[328101395,1716861047248,-2000.0,0.00029073,2]
[328101396,1716861047257,-200.0,0.00029073,2]
[328101397,1716861047266,-2000.0,0.00029073,2]
[328101398,1716861047276,-200.0,0.00029073,2]
[328101399,1716861047285,-687.3552511,0.00029073,2]
[328101400,1716861047294,-200.0,0.00029073,2]
[328101401,1716861047303,-241.836083,0.00029073,7]
[328101402,1716861047313,-241.836083,0.00029073,7]
[328101403,1716861047322,-212.61721291,0.00029118,10]
[328101404,1716861047331,-151.22,0.00029126,2]
[328101405,1716861047341,-21094.02721503,0.00029132,2]
[328101406,1716861047353,-300.0,0.00029135,2]
[328101407,1716861047363,-34673.61972423,0.00029136,11]
[328101408,1716861047372,-500.0,0.00029136,2]
[328101409,1716861047381,-500.0,0.00029136,2]
[328101410,1716861047391,-500.0,0.00029136,2]
[328101411,1716861047400,-500.0,0.00029136,2]
[328101412,1716861047410,-500.0,0.00029136,2]
[328101413,1716861047419,-500.0,0.00029136,2]
[328101414,1716861047428,-500.0,0.00029136,2]
[328101415,1716861047438,-500.0,0.00029136,2]
[328101416,1716861047448,-500.0,0.00029136,2]
[328101417,1716861047457,-500.0,0.00029136,2]
[328101418,1716861047466,-500.0,0.00029136,2]
[328101419,1716861047477,-500.0,0.00029136,2]
[328101420,1716861047487,-500.0,0.00029136,2]
[328101421,1716861047496,-500.0,0.00029136,2]
[328101422,1716861047505,-500.0,0.00029136,2]
[328101423,1716861047515,-500.0,0.00029136,2]
[328101424,1716861047524,-500.0,0.00029136,2]
[328101425,1716861047533,-500.0,0.00029136,2]
[328101426,1716861047542,-500.0,0.00029136,2]
[328101427,1716861047551,-500.0,0.00029136,2]
[328101428,1716861047560,-500.0,0.00029136,2]
[328101429,1716861047570,-500.0,0.00029136,2]
[328101430,1716861047579,-500.0,0.00029136,2]
[328101431,1716861047588,-500.0,0.00029136,2]
[328101432,1716861047599,-500.0,0.00029136,2]
[328101433,1716861047609,-500.0,0.00029136,2]
[328101434,1716861047619,-500.0,0.00029136,2]
[328101435,1716861047628,-500.0,0.00029136,2]
[328101436,1716861047638,-500.0,0.00029136,2]
[328101437,1716861047647,-500.0,0.00029136,2]
[328101438,1716861047656,-500.0,0.00029136,2]
[328101439,1716861047665,-500.0,0.00029136,2]
[328101440,1716861047675,-500.0,0.00029136,2]
[328101441,1716861047684,-500.0,0.00029136,2]
[328101442,1716861047694,-500.0,0.00029136,2]
[328101443,1716861047703,-500.0,0.00029136,2]
[328101444,1716861047712,-500.0,0.00029136,2]
[328101445,1716861047722,-500.0,0.00029136,2]
[328101446,1716861047731,-500.0,0.00029136,2]
[328101447,1716861047740,-500.0,0.00029136,2]
[328101448,1716861047750,-500.0,0.00029136,2]
[328101449,1716861047758,-500.0,0.00029136,2]
[328101450,1716861047768,-500.0,0.00029136,2]
[328101451,1716861047777,-500.0,0.00029136,2]
[328101452,1716861047786,-500.0,0.00029136,2]
[328101453,1716861047796,-500.0,0.00029136,2]
[328101454,1716861047805,-500.0,0.00029136,2]
[328101455,1716861047815,-500.0,0.00029136,2]
[328101456,1716861047825,-500.0,0.00029136,2]
[328101457,1716861047834,-500.0,0.00029136,2]
[328101458,1716861047844,-500.0,0.00029136,2]
[328101459,1716861047857,-500.0,0.00029136,2]
[328101460,1716861047867,-500.0,0.00029136,2]
[328101461,1716861047877,-500.0,0.00029136,2]
[328101462,1716861047887,-500.0,0.00029136,2]
[328101463,1716861047896,-500.0,0.00029136,2]
[328101464,1716861047906,-500.0,0.00029136,2]
[328101465,1716861047915,-500.0,0.00029136,2]
[328101466,1716861047924,-500.0,0.00029136,2]
[328101467,1716861047934,-500.0,0.00029136,2]
[328101468,1716861047943,-500.0,0.00029136,2]
[328101469,1716861047952,-500.0,0.00029136,2]
[328101470,1716861047962,-500.0,0.00029136,2]
[328101471,1716861047972,-500.0,0.00029136,2]
[328101472,1716861047982,-500.0,0.00029136,2]
[328101473,1716861047993,-508.76,0.00029136,2]
[328101474,1716861048003,-500.0,0.00029136,2]
[328101475,1716861048012,-500.0,0.00029136,2]
[328101476,1716861048024,-500.0,0.00029136,2]
[328101477,1716861048033,-500.0,0.00029136,2]
[328101478,1716861048043,-500.0,0.00029136,2]
[328101479,1716861048051,-500.0,0.00029136,2]
[328101480,1716861048061,-500.0,0.00029136,2]
[328101481,1716861048071,-509.55,0.00029136,2]
[328101482,1716861048081,-500.0,0.00029136,2]
[328101483,1716861048090,-500.0,0.00029136,2]
[328101484,1716861048101,-500.0,0.00029136,2]
[328101485,1716861048110,-500.0,0.00029136,2]
[328101486,1716861048119,-500.0,0.00029136,2]
[328101487,1716861048128,-500.0,0.00029136,2]
[328101488,1716861048137,-500.0,0.00029136,2]
[328101489,1716861048146,-500.0,0.00029136,2]
[328101490,1716861048155,-500.0,0.00029136,2]
[328101491,1716861048164,-500.0,0.00029136,2]
[328101492,1716861048173,-500.0,0.00029136,2]
[328101493,1716861048183,-500.0,0.00029136,2]
[328101494,1716861048192,-500.0,0.00029136,2]
[328101495,1716861048201,-500.0,0.00029136,2]
[328101496,1716861048211,-500.0,0.00029136,2]
[328101497,1716861048220,-500.0,0.00029136,2]
[328101498,1716861048229,-500.0,0.00029136,2]
[328101499,1716861048239,-500.0,0.00029136,2]
[328101500,1716861048248,-500.0,0.00029136,2]
[328101501,1716861048258,-500.0,0.00029136,2]
[328101502,1716861048267,-500.0,0.00029136,2]
[328101503,1716861048276,-500.0,0.00029136,2]
[328101504,1716861048286,-500.0,0.00029136,2]
[328101505,1716861048296,-500.0,0.00029136,2]
[328101506,1716861048306,-500.0,0.00029136,2]
[328101507,1716861048315,-500.0,0.00029136,2]
[328101508,1716861048325,-500.0,0.00029136,2]
[328101509,1716861048334,-500.0,0.00029136,2]
[328101510,1716861048343,-500.0,0.00029136,2]
[328101511,1716861048356,-500.0,0.00029136,2]
[328101512,1716861048365,-500.0,0.00029136,2]
[328101513,1716861048375,-500.0,0.00029136,2]
[328101514,1716861048384,-500.0,0.00029136,2]
[328101515,1716861048393,-500.0,0.00029136,2]
[328101516,1716861048402,-500.0,0.00029136,2]
[328101517,1716861048412,-500.0,0.00029136,2]
[328101518,1716861048421,-500.0,0.00029136,2]
[328101519,1716861048430,-500.0,0.00029136,2]
[328101520,1716861048440,-500.0,0.00029136,2]
[328101521,1716861048449,-500.0,0.00029136,2]
[328101522,1716861048458,-500.0,0.00029136,2]
[328101523,1716861048467,-500.0,0.00029136,2]
[328101524,1716861048476,-500.0,0.00029136,2]
[328101525,1716861048486,-500.0,0.00029136,2]
[328101526,1716861048495,-500.0,0.00029136,2]
[328101527,1716861048504,-500.0,0.00029136,2]
[328101528,1716861048514,-500.0,0.00029136,2]
[328101529,1716861048523,-500.0,0.00029136,2]
[328101530,1716861048532,-500.0,0.00029136,2]
[328101531,1716861048727,-500.0,0.00029136,2]
[328101532,1716861048737,-500.0,0.00029136,2]
[328101533,1716861048747,-500.0,0.00029136,2]
[328101534,1716861048758,-500.0,0.00029136,2]
[328101535,1716861048767,-500.0,0.00029136,2]
[328101536,1716861048777,-500.0,0.00029136,2]
[328101537,1716861048787,-500.0,0.00029136,2]
[328101538,1716861048796,-500.0,0.00029136,2]
[328101539,1716861048805,-500.0,0.00029136,2]
[328101540,1716861048815,-500.0,0.00029136,2]
[328101541,1716861048824,-500.0,0.00029136,2]
[328101542,1716861048833,-500.0,0.00029136,2]
[328101543,1716861048843,-500.0,0.00029136,2]
[328101544,1716861048856,-500.0,0.00029136,2]
[328101545,1716861048866,-500.0,0.00029136,2]
[328101546,1716861048875,-500.0,0.00029136,2]
[328101547,1716861048885,-500.0,0.00029136,2]
[328101548,1716861048894,-500.0,0.00029136,2]
[328101549,1716861048903,-500.0,0.00029136,2]
[328101550,1716861048912,-500.0,0.00029136,2]
[328101551,1716861048922,-500.0,0.00029136,2]
[328101552,1716861048931,-500.0,0.00029136,2]
[328101553,1716861048941,-500.0,0.00029136,2]
[328101554,1716861048950,-500.0,0.00029136,2]
[328101555,1716861048960,-500.0,0.00029136,2]
[328101556,1716861048970,-500.0,0.00029136,2]
[328101557,1716861048982,-500.0,0.00029136,2]
[328101558,1716861048993,-500.0,0.00029136,2]
[328101559,1716861049003,-500.0,0.00029136,2]
[328101560,1716861049012,-500.0,0.00029136,2]
[328101561,1716861049022,-500.0,0.00029136,2]
[328101562,1716861049032,-500.0,0.00029136,2]
[328101563,1716861049041,-500.0,0.00029136,2]
[328101564,1716861049050,-500.0,0.00029136,2]
[328101565,1716861049060,-548.33,0.00029136,2]
[328101566,1716861049070,-500.0,0.00029136,2]
[328101567,1716861049080,-500.0,0.00029136,2]
[328101568,1716861049090,-500.0,0.00029136,2]
[328101569,1716861049101,-500.0,0.00029136,2]
[328101570,1716861049110,-500.0,0.00029136,2]
[328101571,1716861049119,-500.0,0.00029136,2]
[328101572,1716861049127,-594.01,0.00029136,2]
[328101573,1716861049136,-151.0,0.00029136,7]
[328101574,1716861049146,-151.0,0.00029136,7]
[328101575,1716861049155,-157.280785,0.00029136,7]
[328101576,1716861049164,-157.280785,0.00029136,7]
[328101577,1716861049174,-241.836083,0.00029136,7]
[328101578,1716861049184,-241.836083,0.00029136,7]
[328101579,1716861049193,-604.666925,0.00029136,7]
[328101580,1716861049203,-674.68115684,0.00029177,2]
[328101581,1716861049212,-159.7439144,0.00029186,2]
[328101582,1716861049221,-153.41127466,0.00029191,2]
[328101583,1716861049230,-508.05632269,0.000292,2]
[328101584,1716861049239,-300.0,0.00029272,2]
[328101585,1716861049248,-150.0,0.000293,6]
[328101586,1716861049258,-5660.30604454,0.00029345,2]
[328101587,1716861049268,-604.666925,0.00029345,7]
[328101588,1716861049277,-2000.0,0.00029364,2]
[328101589,1716861049286,-200.0,0.00029364,2]
[328101590,1716861049295,-2000.0,0.00029364,2]
[328101591,1716861049304,-200.0,0.00029364,2]
[328101592,1716861049314,-200.0,0.00029364,2]
[328101593,1716861049323,-159.7439144,0.0002937,2]
[328101594,1716861049332,-300.0,0.00029409,2]
[328101595,1716861049341,-238.188,0.00029453,2]
[328101596,1716861049352,-151.658,0.00029453,2]
[328101597,1716861049362,-150.0,0.00029453,2]
[328101598,1716861049371,-200.0,0.00029453,2]
[328101599,1716861049380,-209.0,0.00029453,2]
[328101600,1716861049389,-155.224,0.00029453,2]
[328101601,1716861049398,-166.477,0.00029453,2]
[328101602,1716861049408,-285.016,0.00029453,2]
[328101603,1716861049417,-160.204,0.00029453,2]
[328101604,1716861049426,-150.0,0.00029453,2]
[328101605,1716861049435,-182.639,0.00029453,2]
[328101606,1716861049445,-151.447,0.00029453,2]
[328101607,1716861049454,-202.525,0.00029453,2]
[328101608,1716861049464,-150.0,0.00029453,2]
[328101610,1716861049473,-150.426,0.00029453,2]
[328101611,1716861049482,-150.249,0.00029453,2]
[328101612,1716861049492,-180.842219,0.00029453,7]
[328101613,1716861049503,-151.0,0.00029453,7]
[328101614,1716861049512,-157.280785,0.00029453,7]
[328101615,1716861049521,-157.280785,0.00029453,7]
[328101616,1716861049531,-756.47692845,0.00029473,2]
[328101617,1716861049540,-11605.85889239,0.00029489,2]
[328101618,1716861049550,-20059.34685406,0.00029494,2]
[328101619,1716861049560,-150.84006812,0.00029524,2]
[328101620,1716861049569,-153.41127466,0.0002953,2]
[328101621,1716861049578,-218.91986926,0.00029538,2]
[328101622,1716861049588,-300.0,0.00029546,2]
[328101623,1716861049597,-10000.0,0.0002957,2]
[328101624,1716861049608,-6250.0,0.000296,4]
[328101625,1716861049617,-10000.0,0.000296,4]
[328101626,1716861049626,-323.12077895,0.00029635,2]
[328101627,1716861049635,-151.0,0.00029638,7]
[328101628,1716861049645,-157.280785,0.00029638,7]
[328101629,1716861049654,-157.280785,0.00029638,7]
[328101630,1716861049664,-241.836083,0.00029638,7]
[328101631,1716861049674,-241.836083,0.00029638,7]
[328101632,1716861049683,-241.836083,0.00029638,7]
[328101633,1716861049693,-241.836083,0.00029638,7]
[328101634,1716861049702,-604.666925,0.00029638,7]
[328101635,1716861049711,-604.666925,0.00029638,7]
[328101636,1716861049721,-166.712688,0.00029638,2]
[328101637,1716861049730,-169.411803,0.00029638,2]
[328101638,1716861049739,-1013.421235,0.00029638,2]
[328101639,1716861049748,-155.63901,0.00029638,2]
[328101640,1716861049757,-7034.242392,0.00029638,2]
[328101641,1716861049768,-8110.679223,0.00029638,2]
[328101642,1716861049778,-166.712686,0.00029638,2]
[328101643,1716861049787,-169.411802,0.00029638,2]
[328101644,1716861049796,-1163.772344,0.00029638,2]
[328101645,1716861049806,-245.288165,0.00029638,2]
[328101646,1716861049816,-297.193783,0.00029638,2]
[328101647,1716861049825,-154.134279,0.00029638,2]
[328101648,1716861049834,-152.346688,0.00029638,2]
[328101649,1716861049843,-192.780459,0.00029638,2]
[328101650,1716861049856,-189.639602,0.00029638,2]
[328101651,1716861049865,-1643.000301,0.00029638,2]
[328101652,1716861049875,-2879.115914,0.00029638,2]
[328101653,1716861049884,-237.406385,0.00029638,2]
[328101654,1716861049893,-176.726063,0.00029638,2]
[328101655,1716861049902,-13204.440832,0.00029638,2]
[328101656,1716861049911,-492.714074,0.00029638,2]
[328101657,1716861049920,-156.72203,0.00029638,2]
[328101658,1716861049929,-10801.938516,0.00029638,2]
[328101659,1716861049938,-289.440709,0.00029638,2]
[328101660,1716861049947,-10837.650047,0.00029638,2]
[328101661,1716861049956,-237.406385,0.00029638,2]
[328101662,1716861049965,-195.882425,0.00029638,2]
[328101663,1716861049978,-199.695195,0.00029638,2]
[328101664,1716861049987,-3291.62712,0.00029638,2]
[328101665,1716861049999,-176.957568,0.00029638,2]
[328101666,1716861050008,-206.964613,0.00029638,2]
[328101667,1716861050019,-7890.248343,0.00029638,2]
[328101668,1716861050028,-193.872131,0.00029638,2]
[328101669,1716861050037,-5649.094326,0.00029638,2]
[328101670,1716861050046,-441.055395,0.00029638,2]
[328101671,1716861050055,-263.281829,0.00029638,2]
[328101672,1716861050065,-7221.961229,0.00029638,2]
[328101673,1716861050075,-194.320832,0.00029638,2]
[328101674,1716861050084,-159.7439144,0.00029646,2]
[328101675,1716861050094,-2000.0,0.00029657,2]
[328101677,1716861050105,-200.0,0.00029657,2]
[328101679,1716861050115,-2000.0,0.00029657,2]
[328101680,1716861050124,-200.0,0.00029657,2]
[328101681,1716861050133,-200.0,0.00029657,2]
[328101682,1716861050142,-300.0,0.00029683,2]
[328101683,1716861050151,-154.55559777,0.00029713,2]
[328101684,1716861050161,-524.82,0.00029726,2]
[328101685,1716861050170,-1047.7,0.00029726,2]
[328101686,1716861050179,-524.71,0.00029726,2]
[328101687,1716861050189,-10000.0,0.00029738,2]
[328101688,1716861050198,-151.0,0.00029738,7]
[328101689,1716861050207,-157.280785,0.00029738,7]
[328101690,1716861050216,-157.280785,0.00029738,7]
[328101691,1716861050225,-150.94,0.00029753,2]
[328101692,1716861050234,-150.0,0.000298,6]
[328101693,1716861050243,-300.0,0.0002982,2]
[328101694,1716861050253,-20059.34685399,0.00029842,2]
[328101695,1716861050262,-153.41127466,0.0002986,2]
[328101696,1716861050272,-10000.0,0.00029863,2]
[328101697,1716861050281,-153.41127466,0.00029895,2]
[328101698,1716861050290,-185.03443881,0.000299,2]
[328101699,1716861050299,-4598.92098686,0.00029907,2]
[328101700,1716861050308,-221.25937277,0.00029934,2]
[328101701,1716861050317,-311.15915592,0.00029934,2]
[328101702,1716861050327,-790.00185035,0.00029934,2]
[328101703,1716861050335,-155.20311945,0.00029934,2]
[328101704,1716861050345,-155.0,0.00029934,2]
[328101705,1716861050360,-849.24760705,0.00029936,7]
[328101706,1716861050369,-300.0,0.00029957,2]
[328101707,1716861050379,-10000.0,0.0002998,2]
[328101708,1716861050388,-1075.26902827,0.00029999,15]
[328101709,1716861050397,-385.25665819,0.00029999,2]
[328101710,1716861050406,-309.76675448,0.00029999,2]
[328101711,1716861050415,-500.0,0.00029999,2]
[328101712,1716861050424,-500.0,0.00029999,2]
[328101713,1716861050433,-257.02081841,0.00029999,2]
[328101714,1716861050442,-500.0,0.00029999,2]
[328101715,1716861050451,-500.0,0.00029999,2]
[328101716,1716861050460,-614.3060488,0.00029999,2]
[328101717,1716861050469,-500.0,0.00029999,2]
[328101718,1716861050479,-500.0,0.00029999,2]
[328101719,1716861050488,-500.0,0.00029999,2]
[328101720,1716861050497,-500.0,0.00029999,2]
[328101721,1716861050506,-500.0,0.00029999,2]
[328101722,1716861050515,-150.0,0.00029999,10]
[328101723,1716861050524,-150.0,0.00029999,10]
[328101724,1716861050534,-150.0,0.00029999,10]
[328101725,1716861050543,-150.0,0.00029999,10]
[328101726,1716861050552,-495.66524342,0.0003,4]
[328101727,1716861050561,-2000.0,0.0003,30]
[328101728,1716861050570,-151.01171475,0.0003,2]
[328101729,1716861050579,-2343.63542169,0.0003,4]
[328101730,1716861050588,-684.51259512,0.0003,4]
[328101731,1716861050601,-19406.05997029,0.0003,4]
[328101732,1716861050609,-23830.32925495,0.0003,4]
[328101733,1716861050619,-500.0,0.0003,3]
[328101734,1716861050628,-500.0,0.0003,3]
[328101735,1716861050637,-500.0,0.0003,3]
[328101736,1716861050645,-150.57,0.0003,3]
[328101737,1716861050654,-20062.0,0.0003,2]
[328101738,1716861050663,-2227.36783513,0.0003,3]
[328101739,1716861050672,-169818.93871391,0.0003,2]
[328101740,1716861050956,-1361.43772127,0.00013642,2]
[328101741,1716861050966,-155.29359893,0.00013662,2]
[328101742,1716861050979,-6081.90867978,0.00013662,2]
[328101743,1716861050993,-12991.54036838,0.00013662,2]
[328101744,1716861051002,-269.429838,0.00017259,2]
[328101745,1716861051011,-544.92979362,0.00017259,2]
[328101746,1716861051024,-167.25058261,0.00017259,2]
[328101747,1716861051033,-8087.50435927,0.000233,2]
[328101748,1716861051042,-156.23695218,0.00026788,2]
[328101749,1716861051052,-1897.83949895,0.00026788,2]
[328101750,1716861051062,-155.5237526,0.00026788,2]
[328101751,1716861051072,-376.3332854,0.00026789,2]
[328101752,1716861051081,-1207.43906551,0.00026789,2]
[328101753,1716861051090,-1283.32999421,0.00026789,2]
[328101754,1716861051101,-604.666925,0.00026799,7]
[328101755,1716861051110,-2082.56916597,0.00026799,2]
[328101756,1716861051119,-604.666925,0.00026809,7]
[328101757,1716861051128,-3025.01241407,0.00027648,2]
[328101758,1716861051136,-1062.0,0.00027916,2]
[328101759,1716861051145,-604.666925,0.00028085,7]
[328101760,1716861051155,-604.666925,0.00029136,7]
[328101761,1716861051165,-604.666925,0.00029345,7]
[328101762,1716861051174,-604.666925,0.00029638,7]
[328101763,1716861051183,-604.666925,0.00029638,7]
[328101764,1716861051192,-173831.72965431,0.0003,2]
[328101765,1716861051204,-691.37793153,0.0003,2]
[328101766,1716861051274,-478.0,0.0003,5]
[328101767,1716861051283,-484.48909487,0.0003,2]
[328101768,1716861051294,-963.15,0.0003,2]
[328101769,1716861051305,-6908.2,0.0003,2]
[328101774,1716861596297,305.29992915,0.0003,120]
[328101798,1716862232239,-1897.83949895,0.00013329,2]
[328101800,1716862232249,-337.47918463,0.0001333,2]
[328101802,1716862232258,-165.29677628,0.00013339,2]
[328101803,1716862232268,-151.78,0.00013973,2]
[328101805,1716862232278,-160.78,0.00013973,2]
[328101807,1716862232289,-1228.49938183,0.00017158,2]
[328101808,1716862232298,-300.0,0.00017159,2]
[328101809,1716862232308,-150.0,0.00017259,2]
[328101810,1716862232318,-1407.0,0.0001726,6]
[328101811,1716862232327,-7029.37,0.0001726,2]
[328101812,1716862232336,-499.99,0.0001726,2]
[328101813,1716862232346,-394.73459832,0.0001726,2]
[328101814,1716862232362,-70.84540168,0.0001726,2]
[328101815,1716862232371,-299.99,0.0001726,4]
[328101816,1716862232380,-434.79679897,0.00017533,2]
[328101817,1716862232539,-18.76320103,0.00017533,2]
[328101818,1716862232548,-319.59679897,0.00017533,2]
[328101819,1716862232560,-3505.4815812,0.00017533,2]
[328101820,1716862232571,-3010.56161983,0.00017533,2]
[328101821,1716862232580,-319.08,0.00017533,2]
[328101822,1716862232590,-3201.4,0.00017533,2]
[328101823,1716862232599,-1951.52,0.00017534,2]
[328101824,1716862232611,-2132.57891825,0.00018,2]
[328101825,1716862232625,-175.45,0.0001835,2]
[328101826,1716862232635,-165.29677628,0.00018561,2]
[328101827,1716862232645,-210.0,0.00018985,2]
[328101828,1716862232654,-3504.58843467,0.000192,2]
[328101829,1716862232669,-380.48443726,0.000192,2]
[328101830,1716862232678,-150.99,0.00019726,2]
[328101831,1716862232688,-158.66635728,0.0002,2]
[328101832,1716862232698,-243.35127224,0.00021243,2]
[328101833,1716862234221,-431.30872776,0.00021243,2]
[328101834,1716862234231,-170.88,0.00021918,2]
[328101835,1716862234240,-64.64728124,0.00022,2]
[328101836,1716862234252,-135.35271876,0.00022,2]
[328101837,1716862234261,-207.77228124,0.00022526,2]
[328101839,1716862238731,-560.09771876,0.00022526,2]
[328101840,1716862238740,-2769.68,0.00022573,2]
[328101842,1716862238750,-267.17,0.00022799,2]
[328101843,1716862238759,-1315.22291624,0.00022938,2]
[328101844,1716862238771,-40.85708376,0.00022938,2]
[328101845,1716862238780,-2000.0,0.00023003,3]
[328101846,1716862238790,-429.2,0.00023007,2]
[328101847,1716862238799,-250.0,0.00023074,2]
[328101848,1716862238808,-922.9,0.00023137,2]
[328101849,1716862238817,-250.0,0.00023161,2]
[328101850,1716862238827,-8807.71811424,0.00023175,2]
[328101851,1716862238839,-398.10426775,0.00023175,2]
[328101853,1716862239097,-14694.17761801,0.00023175,2]
[328101854,1716862239110,-522.63,0.00023183,2]
[328101855,1716862239120,-1896.23,0.00023183,2]
[328101856,1716862239130,-639.03606806,0.00023297,2]
[328101857,1716862239139,-639.22529929,0.00023297,2]
[328101859,1716862239149,-845.26473006,0.00023298,2]
[328101860,1716862239160,-156.51908943,0.00023298,2]
[328101861,1716862239170,-1251.25225299,0.00023298,2]
[328101862,1716862239180,-582.72180907,0.00023299,2]
[328101863,1716862239190,-7538.67261823,0.00023299,2]
[328101864,1716862239201,-156.50448699,0.00023299,2]
[328101865,1716862239210,-5475.95212883,0.00023299,2]
[328101866,1716862239222,-1827.79999982,0.00023299,2]
[328101867,1716862239234,-14630.29187135,0.00023299,2]
[328101868,1716862239243,-484.48,0.00023338,2]
[328101869,1716862239252,-484.48,0.00023402,2]
[328101870,1716862239262,-500.0,0.00023416,2]
[328101871,1716862239271,-484.48,0.00023466,2]
[328101872,1716862239281,-250.0,0.00023472,2]
[328101873,1716862239291,-200.0,0.00023501,2]
[328101874,1716862239300,-674.66,0.00023507,2]
[328101875,1716862239310,-484.48,0.0002353,2]
[328101876,1716862239319,-150.0,0.00023565,2]
[328101877,1716862239329,-484.48,0.00023594,2]
[328101878,1716862239338,-3635.22,0.00023648,2]
[328101879,1716862239348,-484.48,0.00023658,2]
[328101880,1716862239359,-484.48,0.00023722,2]
[328101881,1716862239367,-165.29677628,0.00023784,2]
[328101882,1716862239377,-484.48,0.00023786,2]
[328101883,1716862239386,-484.48,0.0002385,2]
[328101884,1716862239395,-484.48,0.00023914,2]
[328101885,1716862239405,-484.48,0.00023978,2]
[328101886,1716862239414,-548.09302787,0.00024,2]
[328101887,1716862239424,-433.55644984,0.00024,2]
[328101888,1716862239433,-472.91332031,0.00024,2]
[328101889,1716862239443,-484.48,0.00024042,2]
[328101890,1716862239452,-484.48,0.00024106,2]
[328101891,1716862239461,-484.48,0.0002417,2]
[328101892,1716862239471,-280.0,0.000242,2]
[328101893,1716862239481,-165.12,0.00024219,2]
[328101894,1716862239491,-484.48,0.00024234,2]
[328101895,1716862239500,-189.84,0.0002428,2]
[328101896,1716862239510,-484.48,0.00024298,2]
[328101897,1716862239519,-484.48,0.00024362,2]
[328101898,1716862239529,-484.48,0.00024426,2]
[328101899,1716862239539,-484.48,0.0002449,2]
[328101900,1716862239548,-484.48,0.00024554,2]
[328101901,1716862239558,-151.09965317,0.00024644,2]
[328101902,1716862239569,-154.30080749,0.00024748,2]
[328101903,1716862239578,-180.0,0.00024794,2]
[328101904,1716862239588,-208.38,0.00024946,2]
[328101905,1716862239599,-155.0,0.00025,2]
[328101906,1716862239612,-1050.0,0.00025,2]
[328101907,1716862239626,-224.57769826,0.00025,2]